Workbook

Sheet PERSONAL BUDGET
B2: PERSONAL BUDGET
B4: REVENUE
B5: INCOME | C5: JAN | D5: FEB | E5: MAR | F5: APR | G5: MAY | H5: JUN | I5: JUL | J5: AUG | K5: SEP | L5: OCT | M5: NOV | N5: DEC | O5: YEAR | P5: SPARKLINE
B6: Wages | C6: $2,600.00 | D6: $2,600.00 | E6: $2,600.00 | O6: =SUM(tblIncome[[#This Row],[JAN]:[DEC]]) -> $7,800.00
B7: Interest/dividends | C7: $649.00 | D7: $313.00 | E7: $664.00 | O7: =SUM(tblIncome[[#This Row],[JAN]:[DEC]]) -> $1,626.00
B8: Miscellaneous | C8: $474.00 | D8: $643.00 | E8: $380.00 | O8: =SUM(tblIncome[[#This Row],[JAN]:[DEC]]) -> $1,497.00
B9: Total | C9: =SUBTOTAL(109,tblIncome[JAN]) -> $3,723.00 | D9: =SUBTOTAL(109,tblIncome[FEB]) -> $3,556.00 | E9: =SUBTOTAL(109,tblIncome[MAR]) -> $3,644.00 | F9: =SUBTOTAL(109,tblIncome[APR]) -> $0.00 | G9: =SUBTOTAL(109,tblIncome[MAY]) -> $0.00 | H9: =SUBTOTAL(109,tblIncome[JUN]) -> $0.00 | I9: =SUBTOTAL(109,tblIncome[JUL]) -> $0.00 | J9: =SUBTOTAL(109,tblIncome[AUG]) -> $0.00 | K9: =SUBTOTAL(109,tblIncome[SEP]) -> $0.00 | L9: =SUBTOTAL(109,tblIncome[OCT]) -> $0.00 | M9: =SUBTOTAL(109,tblIncome[NOV]) -> $0.00 | N9: =SUBTOTAL(109,tblIncome[DEC]) -> $0.00 | O9: =SUBTOTAL(109,tblIncome[YEAR]) -> $10,923.00
B11: EXPENSES
B12: HOME | C12: JAN | D12: FEB | E12: MAR | F12: APR | G12: MAY | H12: JUN | I12: JUL | J12: AUG | K12: SEP | L12: OCT | M12: NOV | N12: DEC | O12: YEAR
B13: Mortgage | C13: $750.00 | D13: $750.00 | E13: $750.00 | O13: =SUM(tblHome[[#This Row],[JAN]:[DEC]]) -> $2,250.00
B14: Insurance | O14: =SUM(tblHome[[#This Row],[JAN]:[DEC]]) -> $0.00
B15: Repairs | E15: $75.00 | O15: =SUM(tblHome[[#This Row],[JAN]:[DEC]]) -> $75.00
B16: Services | C16: $35.00 | D16: $35.00 | E16: $35.00 | O16: =SUM(tblHome[[#This Row],[JAN]:[DEC]]) -> $105.00
B17: Utilities | C17: $165.00 | D17: $165.00 | E17: $165.00 | O17: =SUM(tblHome[[#This Row],[JAN]:[DEC]]) -> $495.00
B18: Total | C18: =SUBTOTAL(109,tblHome[JAN]) -> $950.00 | D18: =SUBTOTAL(109,tblHome[FEB]) -> $950.00 | E18: =SUBTOTAL(109,tblHome[MAR]) -> $1,025.00 | F18: =SUBTOTAL(109,tblHome[APR]) -> $0.00 | G18: =SUBTOTAL(109,tblHome[MAY]) -> $0.00 | H18: =SUBTOTAL(109,tblHome[JUN]) -> $0.00 | I18: =SUBTOTAL(109,tblHome[JUL]) -> $0.00 | J18: =SUBTOTAL(109,tblHome[AUG]) -> $0.00 | K18: =SUBTOTAL(109,tblHome[SEP]) -> $0.00 | L18: =SUBTOTAL(109,tblHome[OCT]) -> $0.00 | M18: =SUBTOTAL(109,tblHome[NOV]) -> $0.00 | N18: =SUBTOTAL(109,tblHome[DEC]) -> $0.00 | O18: =SUBTOTAL(109,tblHome[YEAR]) -> $2,925.00
B20: DAILY LIVING | C20: JAN | D20: FEB | E20: MAR | F20: APR | G20: MAY | H20: JUN | I20: JUL | J20: AUG | K20: SEP | L20: OCT | M20: NOV | N20: DEC | O20: YEAR
B21: Groceries | C21: $191.00 | D21: $152.00 | E21: $145.00 | O21: =SUM(tblDaily[[#This Row],[JAN]:[DEC]]) -> $488.00
B22: Child care | C22: $200.00 | D22: $200.00 | E22: $200.00 | O22: =SUM(tblDaily[[#This Row],[JAN]:[DEC]]) -> $600.00
B23: Dry cleaning | C23: $20.00 | E23: $20.00 | O23: =SUM(tblDaily[[#This Row],[JAN]:[DEC]]) -> $40.00
B24: Dining out | C24: $55.00 | E24: $56.00 | O24: =SUM(tblDaily[[#This Row],[JAN]:[DEC]]) -> $111.00
B25: Housecleaning service | C25: $25.00 | D25: $17.00 | E25: $7.00 | O25: =SUM(tblDaily[[#This Row],[JAN]:[DEC]]) -> $49.00
B26: Dog walker | C26: $10.00 | D26: $5.00 | E26: $7.00 | O26: =SUM(tblDaily[[#This Row],[JAN]:[DEC]]) -> $22.00
B27: Total | C27: =SUBTOTAL(109,tblDaily[JAN]) -> $501.00 | D27: =SUBTOTAL(109,tblDaily[FEB]) -> $374.00 | E27: =SUBTOTAL(109,tblDaily[MAR]) -> $435.00 | F27: =SUBTOTAL(109,tblDaily[APR]) -> $0.00 | G27: =SUBTOTAL(109,tblDaily[MAY]) -> $0.00 | H27: =SUBTOTAL(109,tblDaily[JUN]) -> $0.00 | I27: =SUBTOTAL(109,tblDaily[JUL]) -> $0.00 | J27: =SUBTOTAL(109,tblDaily[AUG]) -> $0.00 | K27: =SUBTOTAL(109,tblDaily[SEP]) -> $0.00 | L27: =SUBTOTAL(109,tblDaily[OCT]) -> $0.00 | M27: =SUBTOTAL(109,tblDaily[NOV]) -> $0.00 | N27: =SUBTOTAL(109,tblDaily[DEC]) -> $0.00 | O27: =SUBTOTAL(109,tblDaily[YEAR]) -> $1,310.00
B29: TRANSPORTATION | C29: JAN | D29: FEB | E29: MAR | F29: APR | G29: MAY | H29: JUN | I29: JUL | J29: AUG | K29: SEP | L29: OCT | M29: NOV | N29: DEC | O29: YEAR
B30: Gas/fuel | C30: $195.00 | D30: $125.00 | E30: $171.00 | O30: =SUM(tblTransportation[[#This Row],[JAN]:[DEC]]) -> $491.00
B31: Insurance | C31: $165.00 | D31: $165.00 | E31: $165.00 | O31: =SUM(tblTransportation[[#This Row],[JAN]:[DEC]]) -> $495.00
B32: Repairs | O32: =SUM(tblTransportation[[#This Row],[JAN]:[DEC]]) -> $0.00
B33: Car wash/detailing services | C33: $10.00 | O33: =SUM(tblTransportation[[#This Row],[JAN]:[DEC]]) -> $10.00
B34: Parking | C34: $10.00 | D34: $40.00 | E34: $20.00 | O34: =SUM(tblTransportation[[#This Row],[JAN]:[DEC]]) -> $70.00
B35: Public transportation | C35: $20.00 | D35: $40.00 | E35: $30.00 | O35: =SUM(tblTransportation[[#This Row],[JAN]:[DEC]]) -> $90.00
B36: Total | C36: =SUBTOTAL(109,tblTransportation[JAN]) -> $400.00 | D36: =SUBTOTAL(109,tblTransportation[FEB]) -> $370.00 | E36: =SUBTOTAL(109,tblTransportation[MAR]) -> $386.00 | F36: =SUBTOTAL(109,tblTransportation[APR]) -> $0.00 | G36: =SUBTOTAL(109,tblTransportation[MAY]) -> $0.00 | H36: =SUBTOTAL(109,tblTransportation[JUN]) -> $0.00 | I36: =SUBTOTAL(109,tblTransportation[JUL]) -> $0.00 | J36: =SUBTOTAL(109,tblTransportation[AUG]) -> $0.00 | K36: =SUBTOTAL(109,tblTransportation[SEP]) -> $0.00 | L36: =SUBTOTAL(109,tblTransportation[OCT]) -> $0.00 | M36: =SUBTOTAL(109,tblTransportation[NOV]) -> $0.00 | N36: =SUBTOTAL(109,tblTransportation[DEC]) -> $0.00 | O36: =SUBTOTAL(109,tblTransportation[YEAR]) -> $1,156.00
B38: ENTERTAINMENT | C38: JAN | D38: FEB | E38: MAR | F38: APR | G38: MAY | H38: JUN | I38: JUL | J38: AUG | K38: SEP | L38: OCT | M38: NOV | N38: DEC | O38: YEAR
B39: Cable TV | C39: $85.00 | D39: $85.00 | E39: $85.00 | O39: =SUM(tblEntertainment[[#This Row],[JAN]:[DEC]]) -> $255.00
B40: Video/DVD rentals | C40: $7.00 | D40: $8.00 | E40: $9.00 | O40: =SUM(tblEntertainment[[#This Row],[JAN]:[DEC]]) -> $24.00
B41: Movies/plays | C41: $9.00 | D41: $5.00 | E41: $9.00 | O41: =SUM(tblEntertainment[[#This Row],[JAN]:[DEC]]) -> $23.00
B42: Concerts/clubs | C42: $5.00 | D42: $5.00 | E42: $7.00 | O42: =SUM(tblEntertainment[[#This Row],[JAN]:[DEC]]) -> $17.00
B43: Total | C43: =SUBTOTAL(109,tblEntertainment[JAN]) -> $106.00 | D43: =SUBTOTAL(109,tblEntertainment[FEB]) -> $103.00 | E43: =SUBTOTAL(109,tblEntertainment[MAR]) -> $110.00 | F43: =SUBTOTAL(109,tblEntertainment[APR]) -> $0.00 | G43: =SUBTOTAL(109,tblEntertainment[MAY]) -> $0.00 | H43: =SUBTOTAL(109,tblEntertainment[JUN]) -> $0.00 | I43: =SUBTOTAL(109,tblEntertainment[JUL]) -> $0.00 | J43: =SUBTOTAL(109,tblEntertainment[AUG]) -> $0.00 | K43: =SUBTOTAL(109,tblEntertainment[SEP]) -> $0.00 | L43: =SUBTOTAL(109,tblEntertainment[OCT]) -> $0.00 | M43: =SUBTOTAL(109,tblEntertainment[NOV]) -> $0.00 | N43: =SUBTOTAL(109,tblEntertainment[DEC]) -> $0.00 | O43: =SUBTOTAL(109,tblEntertainment[YEAR]) -> $319.00
B45: HEALTH | C45: JAN | D45: FEB | E45: MAR | F45: APR | G45: MAY | H45: JUN | I45: JUL | J45: AUG | K45: SEP | L45: OCT | M45: NOV | N45: DEC | O45: YEAR
B46: Health club dues | C46: $50.00 | D46: $50.00 | E46: $50.00 | O46: =SUM(tblHealth[[#This Row],[JAN]:[DEC]]) -> $150.00
B47: Insurance | C47: $225.00 | D47: $225.00 | E47: $225.00 | O47: =SUM(tblHealth[[#This Row],[JAN]:[DEC]]) -> $675.00
B48: Prescriptions | C48: $100.00 | D48: $100.00 | E48: $100.00 | O48: =SUM(tblHealth[[#This Row],[JAN]:[DEC]]) -> $300.00
B49: Over-the-counter drugs | C49: $6.00 | D49: $2.00 | E49: $9.00 | O49: =SUM(tblHealth[[#This Row],[JAN]:[DEC]]) -> $17.00
B50: Co-payments/out-of-pocket | C50: $20.00 | E50: $41.00 | O50: =SUM(tblHealth[[#This Row],[JAN]:[DEC]]) -> $61.00
B51: Veterinarians/pet medicines | C51: $4.00 | E51: $25.00 | O51: =SUM(tblHealth[[#This Row],[JAN]:[DEC]]) -> $29.00
B52: Life insurance | C52: $55.00 | D52: $55.00 | E52: $55.00 | O52: =SUM(tblHealth[[#This Row],[JAN]:[DEC]]) -> $165.00
B53: Total | C53: =SUBTOTAL(109,tblHealth[JAN]) -> $460.00 | D53: =SUBTOTAL(109,tblHealth[FEB]) -> $432.00 | E53: =SUBTOTAL(109,tblHealth[MAR]) -> $505.00 | F53: =SUBTOTAL(109,tblHealth[APR]) -> $0.00 | G53: =SUBTOTAL(109,tblHealth[MAY]) -> $0.00 | H53: =SUBTOTAL(109,tblHealth[JUN]) -> $0.00 | I53: =SUBTOTAL(109,tblHealth[JUL]) -> $0.00 | J53: =SUBTOTAL(109,tblHealth[AUG]) -> $0.00 | K53: =SUBTOTAL(109,tblHealth[SEP]) -> $0.00 | L53: =SUBTOTAL(109,tblHealth[OCT]) -> $0.00 | M53: =SUBTOTAL(109,tblHealth[NOV]) -> $0.00 | N53: =SUBTOTAL(109,tblHealth[DEC]) -> $0.00 | O53: =SUBTOTAL(109,tblHealth[YEAR]) -> $1,397.00
B55: VACATIONS | C55: JAN | D55: FEB | E55: MAR | F55: APR | G55: MAY | H55: JUN | I55: JUL | J55: AUG | K55: SEP | L55: OCT | M55: NOV | N55: DEC | O55: YEAR
B56: Plane fare | D56: $485.00 | O56: =SUM(tblVacations[[#This Row],[JAN]:[DEC]]) -> $485.00
B57: Accommodations | D57: $245.00 | O57: =SUM(tblVacations[[#This Row],[JAN]:[DEC]]) -> $245.00
B58: Food | D58: $95.00 | O58: =SUM(tblVacations[[#This Row],[JAN]:[DEC]]) -> $95.00
B59: Souvenirs | O59: =SUM(tblVacations[[#This Row],[JAN]:[DEC]]) -> $0.00
B60: Pet boarding | O60: =SUM(tblVacations[[#This Row],[JAN]:[DEC]]) -> $0.00
B61: Rental car | D61: $85.00 | O61: =SUM(tblVacations[[#This Row],[JAN]:[DEC]]) -> $85.00
B62: Total | C62: =SUBTOTAL(109,tblVacations[JAN]) -> $0.00 | D62: =SUBTOTAL(109,tblVacations[FEB]) -> $910.00 | E62: =SUBTOTAL(109,tblVacations[MAR]) -> $0.00 | F62: =SUBTOTAL(109,tblVacations[APR]) -> $0.00 | G62: =SUBTOTAL(109,tblVacations[MAY]) -> $0.00 | H62: =SUBTOTAL(109,tblVacations[JUN]) -> $0.00 | I62: =SUBTOTAL(109,tblVacations[JUL]) -> $0.00 | J62: =SUBTOTAL(109,tblVacations[AUG]) -> $0.00 | K62: =SUBTOTAL(109,tblVacations[SEP]) -> $0.00 | L62: =SUBTOTAL(109,tblVacations[OCT]) -> $0.00 | M62: =SUBTOTAL(109,tblVacations[NOV]) -> $0.00 | N62: =SUBTOTAL(109,tblVacations[DEC]) -> $0.00 | O62: =SUBTOTAL(109,tblVacations[YEAR]) -> $910.00
B64: RECREATION | C64: JAN | D64: FEB | E64: MAR | F64: APR | G64: MAY | H64: JUN | I64: JUL | J64: AUG | K64: SEP | L64: OCT | M64: NOV | N64: DEC | O64: YEAR
B65: Gym fees | O65: =SUM(tblRecreation[[#This Row],[JAN]:[DEC]]) -> $0.00
B66: Sports equipment | O66: =SUM(tblRecreation[[#This Row],[JAN]:[DEC]]) -> $0.00
B67: Team dues | O67: =SUM(tblRecreation[[#This Row],[JAN]:[DEC]]) -> $0.00
B68: Toys/child gear | C68: $39.00 | D68: $33.00 | E68: $40.00 | O68: =SUM(tblRecreation[[#This Row],[JAN]:[DEC]]) -> $112.00
B69: Total | C69: =SUBTOTAL(109,tblRecreation[JAN]) -> $39.00 | D69: =SUBTOTAL(109,tblRecreation[FEB]) -> $33.00 | E69: =SUBTOTAL(109,tblRecreation[MAR]) -> $40.00 | F69: =SUBTOTAL(109,tblRecreation[APR]) -> $0.00 | G69: =SUBTOTAL(109,tblRecreation[MAY]) -> $0.00 | H69: =SUBTOTAL(109,tblRecreation[JUN]) -> $0.00 | I69: =SUBTOTAL(109,tblRecreation[JUL]) -> $0.00 | J69: =SUBTOTAL(109,tblRecreation[AUG]) -> $0.00 | K69: =SUBTOTAL(109,tblRecreation[SEP]) -> $0.00 | L69: =SUBTOTAL(109,tblRecreation[OCT]) -> $0.00 | M69: =SUBTOTAL(109,tblRecreation[NOV]) -> $0.00 | N69: =SUBTOTAL(109,tblRecreation[DEC]) -> $0.00 | O69: =SUBTOTAL(109,tblRecreation[YEAR]) -> $112.00
B71: DUES/SUBSCRIPTION | C71: JAN | D71: FEB | E71: MAR | F71: APR | G71: MAY | H71: JUN | I71: JUL | J71: AUG | K71: SEP | L71: OCT | M71: NOV | N71: DEC | O71: YEAR
B72: Magazines | O72: =SUM(tblDues[[#This Row],[JAN]:[DEC]]) -> $0.00
B73: Newspapers | O73: =SUM(tblDues[[#This Row],[JAN]:[DEC]]) -> $0.00
B74: Internet connection | O74: =SUM(tblDues[[#This Row],[JAN]:[DEC]]) -> $0.00
B75: Public radio | O75: =SUM(tblDues[[#This Row],[JAN]:[DEC]]) -> $0.00
B76: Public television | O76: =SUM(tblDues[[#This Row],[JAN]:[DEC]]) -> $0.00
B77: Religious organizations | C77: $29.00 | D77: $18.00 | E77: $17.00 | O77: =SUM(tblDues[[#This Row],[JAN]:[DEC]]) -> $64.00
B78: Charity | O78: =SUM(tblDues[[#This Row],[JAN]:[DEC]]) -> $0.00
B79: Total | C79: =SUBTOTAL(109,tblDues[JAN]) -> $29.00 | D79: =SUBTOTAL(109,tblDues[FEB]) -> $18.00 | E79: =SUBTOTAL(109,tblDues[MAR]) -> $17.00 | F79: =SUBTOTAL(109,tblDues[APR]) -> $0.00 | G79: =SUBTOTAL(109,tblDues[MAY]) -> $0.00 | H79: =SUBTOTAL(109,tblDues[JUN]) -> $0.00 | I79: =SUBTOTAL(109,tblDues[JUL]) -> $0.00 | J79: =SUBTOTAL(109,tblDues[AUG]) -> $0.00 | K79: =SUBTOTAL(109,tblDues[SEP]) -> $0.00 | L79: =SUBTOTAL(109,tblDues[OCT]) -> $0.00 | M79: =SUBTOTAL(109,tblDues[NOV]) -> $0.00 | N79: =SUBTOTAL(109,tblDues[DEC]) -> $0.00 | O79: =SUBTOTAL(109,tblDues[YEAR]) -> $64.00
B81: PERSONAL | C81: JAN | D81: FEB | E81: MAR | F81: APR | G81: MAY | H81: JUN | I81: JUL | J81: AUG | K81: SEP | L81: OCT | M81: NOV | N81: DEC | O81: YEAR
B82: Clothing | E82: $29.00 | O82: =SUM(tblPersonal[[#This Row],[JAN]:[DEC]]) -> $29.00
B83: Gifts | D83: $35.00 | O83: =SUM(tblPersonal[[#This Row],[JAN]:[DEC]]) -> $35.00
B84: Salon/barber | C84: $25.00 | D84: $25.00 | E84: $25.00 | O84: =SUM(tblPersonal[[#This Row],[JAN]:[DEC]]) -> $75.00
B85: Books | O85: =SUM(tblPersonal[[#This Row],[JAN]:[DEC]]) -> $0.00
B86: Music (CDs, etc.) | O86: =SUM(tblPersonal[[#This Row],[JAN]:[DEC]]) -> $0.00
B87: Total | C87: =SUBTOTAL(109,tblPersonal[JAN]) -> $25.00 | D87: =SUBTOTAL(109,tblPersonal[FEB]) -> $60.00 | E87: =SUBTOTAL(109,tblPersonal[MAR]) -> $54.00 | F87: =SUBTOTAL(109,tblPersonal[APR]) -> $0.00 | G87: =SUBTOTAL(109,tblPersonal[MAY]) -> $0.00 | H87: =SUBTOTAL(109,tblPersonal[JUN]) -> $0.00 | I87: =SUBTOTAL(109,tblPersonal[JUL]) -> $0.00 | J87: =SUBTOTAL(109,tblPersonal[AUG]) -> $0.00 | K87: =SUBTOTAL(109,tblPersonal[SEP]) -> $0.00 | L87: =SUBTOTAL(109,tblPersonal[OCT]) -> $0.00 | M87: =SUBTOTAL(109,tblPersonal[NOV]) -> $0.00 | N87: =SUBTOTAL(109,tblPersonal[DEC]) -> $0.00 | O87: =SUBTOTAL(109,tblPersonal[YEAR]) -> $139.00
B89: FINANCIAL OBLIGATIONS | C89: JAN | D89: FEB | E89: MAR | F89: APR | G89: MAY | H89: JUN | I89: JUL | J89: AUG | K89: SEP | L89: OCT | M89: NOV | N89: DEC | O89: YEAR
B90: Long-term savings | C90: $25.00 | D90: $25.00 | E90: $25.00 | O90: =SUM(tblFinancial[[#This Row],[JAN]:[DEC]]) -> $75.00
B91: Retirement (401k, Roth IRA) | C91: $45.00 | D91: $45.00 | E91: $45.00 | O91: =SUM(tblFinancial[[#This Row],[JAN]:[DEC]]) -> $135.00
B92: Credit card payments | C92: $75.00 | D92: $75.00 | E92: $75.00 | O92: =SUM(tblFinancial[[#This Row],[JAN]:[DEC]]) -> $225.00
B93: Income tax (additional) | O93: =SUM(tblFinancial[[#This Row],[JAN]:[DEC]]) -> $0.00
B94: Other obligations | C94: $32.00 | D94: $34.00 | E94: $1.00 | O94: =SUM(tblFinancial[[#This Row],[JAN]:[DEC]]) -> $67.00
B95: Total | C95: =SUBTOTAL(109,tblFinancial[JAN]) -> $177.00 | D95: =SUBTOTAL(109,tblFinancial[FEB]) -> $179.00 | E95: =SUBTOTAL(109,tblFinancial[MAR]) -> $146.00 | F95: =SUBTOTAL(109,tblFinancial[APR]) -> $0.00 | G95: =SUBTOTAL(109,tblFinancial[MAY]) -> $0.00 | H95: =SUBTOTAL(109,tblFinancial[JUN]) -> $0.00 | I95: =SUBTOTAL(109,tblFinancial[JUL]) -> $0.00 | J95: =SUBTOTAL(109,tblFinancial[AUG]) -> $0.00 | K95: =SUBTOTAL(109,tblFinancial[SEP]) -> $0.00 | L95: =SUBTOTAL(109,tblFinancial[OCT]) -> $0.00 | M95: =SUBTOTAL(109,tblFinancial[NOV]) -> $0.00 | N95: =SUBTOTAL(109,tblFinancial[DEC]) -> $0.00 | O95: =SUBTOTAL(109,tblFinancial[YEAR]) -> $502.00
B97: MISC PAYMENTS | C97: JAN | D97: FEB | E97: MAR | F97: APR | G97: MAY | H97: JUN | I97: JUL | J97: AUG | K97: SEP | L97: OCT | M97: NOV | N97: DEC | O97: YEAR
B98: Other | O98: =SUM(tblMisc[[#This Row],[JAN]:[DEC]]) -> $0.00
B99: Other | O99: =SUM(tblMisc[[#This Row],[JAN]:[DEC]]) -> $0.00
B100: Other | O100: =SUM(tblMisc[[#This Row],[JAN]:[DEC]]) -> $0.00
B101: Other | O101: =SUM(tblMisc[[#This Row],[JAN]:[DEC]]) -> $0.00
B102: Other | O102: =SUM(tblMisc[[#This Row],[JAN]:[DEC]]) -> $0.00
B103: Total | C103: =SUBTOTAL(109,tblMisc[JAN]) -> $0.00 | D103: =SUBTOTAL(109,tblMisc[FEB]) -> $0.00 | E103: =SUBTOTAL(109,tblMisc[MAR]) -> $0.00 | F103: =SUBTOTAL(109,tblMisc[APR]) -> $0.00 | G103: =SUBTOTAL(109,tblMisc[MAY]) -> $0.00 | H103: =SUBTOTAL(109,tblMisc[JUN]) -> $0.00 | I103: =SUBTOTAL(109,tblMisc[JUL]) -> $0.00 | J103: =SUBTOTAL(109,tblMisc[AUG]) -> $0.00 | K103: =SUBTOTAL(109,tblMisc[SEP]) -> $0.00 | L103: =SUBTOTAL(109,tblMisc[OCT]) -> $0.00 | M103: =SUBTOTAL(109,tblMisc[NOV]) -> $0.00 | N103: =SUBTOTAL(109,tblMisc[DEC]) -> $0.00 | O103: =SUBTOTAL(109,tblMisc[YEAR]) -> $0.00
B105: TOTALS | C105: JAN | D105: FEB | E105: MAR | F105: APR | G105: MAY | H105: JUN | I105: JUL | J105: AUG | K105: SEP | L105: OCT | M105: NOV | N105: DEC | O105: YEAR
B106: Total expenses | C106: =SUM(tblMisc[[#Totals],[JAN]],tblFinancial[[#Totals],[JAN]],tblPersonal[[#Totals],[JAN]],tblDues[[#Totals],[JAN]],tblRecreation[[#Totals],[JAN]],tblVacations[[#Totals],[JAN]],tblHealth[[#Totals],[JAN]],tblEntertainment[[#Totals],[JAN]],tblTransportation[[#Totals],[JAN]],tblDaily[[#Totals],[JAN]],tblHome[[#Totals],[JAN]]) -> $2,687.00 | D106: =SUM(tblMisc[[#Totals],[FEB]],tblFinancial[[#Totals],[FEB]],tblPersonal[[#Totals],[FEB]],tblDues[[#Totals],[FEB]],tblRecreation[[#Totals],[FEB]],tblVacations[[#Totals],[FEB]],tblHealth[[#Totals],[FEB]],tblEntertainment[[#Totals],[FEB]],tblTransportation[[#Totals],[FEB]],tblDaily[[#Totals],[FEB]],tblHome[[#Totals],[FEB]]) -> $3,429.00 | E106: =SUM(tblMisc[[#Totals],[MAR]],tblFinancial[[#Totals],[MAR]],tblPersonal[[#Totals],[MAR]],tblDues[[#Totals],[MAR]],tblRecreation[[#Totals],[MAR]],tblVacations[[#Totals],[MAR]],tblHealth[[#Totals],[MAR]],tblEntertainment[[#Totals],[MAR]],tblTransportation[[#Totals],[MAR]],tblDaily[[#Totals],[MAR]],tblHome[[#Totals],[MAR]]) -> $2,718.00 | F106: =SUM(tblMisc[[#Totals],[APR]],tblFinancial[[#Totals],[APR]],tblPersonal[[#Totals],[APR]],tblDues[[#Totals],[APR]],tblRecreation[[#Totals],[APR]],tblVacations[[#Totals],[APR]],tblHealth[[#Totals],[APR]],tblEntertainment[[#Totals],[APR]],tblTransportation[[#Totals],[APR]],tblDaily[[#Totals],[APR]],tblHome[[#Totals],[APR]]) -> $0.00 | G106: =SUM(tblMisc[[#Totals],[MAY]],tblFinancial[[#Totals],[MAY]],tblPersonal[[#Totals],[MAY]],tblDues[[#Totals],[MAY]],tblRecreation[[#Totals],[MAY]],tblVacations[[#Totals],[MAY]],tblHealth[[#Totals],[MAY]],tblEntertainment[[#Totals],[MAY]],tblTransportation[[#Totals],[MAY]],tblDaily[[#Totals],[MAY]],tblHome[[#Totals],[MAY]]) -> $0.00 | H106: =SUM(tblMisc[[#Totals],[JUN]],tblFinancial[[#Totals],[JUN]],tblPersonal[[#Totals],[JUN]],tblDues[[#Totals],[JUN]],tblRecreation[[#Totals],[JUN]],tblVacations[[#Totals],[JUN]],tblHealth[[#Totals],[JUN]],tblEntertainment[[#Totals],[JUN]],tblTransportation[[#Totals],[JUN]],tblDaily[[#Totals],[JUN]],tblHome[[#Totals],[JUN]]) -> $0.00 | I106: =SUM(tblMisc[[#Totals],[JUL]],tblFinancial[[#Totals],[JUL]],tblPersonal[[#Totals],[JUL]],tblDues[[#Totals],[JUL]],tblRecreation[[#Totals],[JUL]],tblVacations[[#Totals],[JUL]],tblHealth[[#Totals],[JUL]],tblEntertainment[[#Totals],[JUL]],tblTransportation[[#Totals],[JUL]],tblDaily[[#Totals],[JUL]],tblHome[[#Totals],[JUL]]) -> $0.00 | J106: =SUM(tblMisc[[#Totals],[AUG]],tblFinancial[[#Totals],[AUG]],tblPersonal[[#Totals],[AUG]],tblDues[[#Totals],[AUG]],tblRecreation[[#Totals],[AUG]],tblVacations[[#Totals],[AUG]],tblHealth[[#Totals],[AUG]],tblEntertainment[[#Totals],[AUG]],tblTransportation[[#Totals],[AUG]],tblDaily[[#Totals],[AUG]],tblHome[[#Totals],[AUG]]) -> $0.00 | K106: =SUM(tblMisc[[#Totals],[SEP]],tblFinancial[[#Totals],[SEP]],tblPersonal[[#Totals],[SEP]],tblDues[[#Totals],[SEP]],tblRecreation[[#Totals],[SEP]],tblVacations[[#Totals],[SEP]],tblHealth[[#Totals],[SEP]],tblEntertainment[[#Totals],[SEP]],tblTransportation[[#Totals],[SEP]],tblDaily[[#Totals],[SEP]],tblHome[[#Totals],[SEP]]) -> $0.00 | L106: =SUM(tblMisc[[#Totals],[OCT]],tblFinancial[[#Totals],[OCT]],tblPersonal[[#Totals],[OCT]],tblDues[[#Totals],[OCT]],tblRecreation[[#Totals],[OCT]],tblVacations[[#Totals],[OCT]],tblHealth[[#Totals],[OCT]],tblEntertainment[[#Totals],[OCT]],tblTransportation[[#Totals],[OCT]],tblDaily[[#Totals],[OCT]],tblHome[[#Totals],[OCT]]) -> $0.00 | M106: =SUM(tblMisc[[#Totals],[NOV]],tblFinancial[[#Totals],[NOV]],tblPersonal[[#Totals],[NOV]],tblDues[[#Totals],[NOV]],tblRecreation[[#Totals],[NOV]],tblVacations[[#Totals],[NOV]],tblHealth[[#Totals],[NOV]],tblEntertainment[[#Totals],[NOV]],tblTransportation[[#Totals],[NOV]],tblDaily[[#Totals],[NOV]],tblHome[[#Totals],[NOV]]) -> $0.00 | N106: =SUM(tblMisc[[#Totals],[DEC]],tblFinancial[[#Totals],[DEC]],tblPersonal[[#Totals],[DEC]],tblDues[[#Totals],[DEC]],tblRecreation[[#Totals],[DEC]],tblVacations[[#Totals],[DEC]],tblHealth[[#Totals],[DEC]],tblEntertainment[[#Totals],[DEC]],tblTransportation[[#Totals],[DEC]],tblDaily[[#Totals],[DEC]],tblHome[[#Totals],[DEC]]) -> $0.00 | O106: =SUM(tblMisc[[#Totals],[YEAR]],tblFinancial[[#Totals],[YEAR]],tblPersonal[[#Totals],[YEAR]],tblDues[[#Totals],[YEAR]],tblRecreation[[#Totals],[YEAR]],tblVacations[[#Totals],[YEAR]],tblHealth[[#Totals],[YEAR]],tblEntertainment[[#Totals],[YEAR]],tblTransportation[[#Totals],[YEAR]],tblDaily[[#Totals],[YEAR]],tblHome[[#Totals],[YEAR]]) -> $8,834.00
B107: Cash short/extra | C107: =tblIncome[[#Totals],[JAN]]-C106 -> $1,036.00 | D107: =tblIncome[[#Totals],[FEB]]-D106 -> $127.00 | E107: =tblIncome[[#Totals],[MAR]]-E106 -> $926.00 | F107: =tblIncome[[#Totals],[APR]]-F106 -> $0.00 | G107: =tblIncome[[#Totals],[MAY]]-G106 -> $0.00 | H107: =tblIncome[[#Totals],[JUN]]-H106 -> $0.00 | I107: =tblIncome[[#Totals],[JUL]]-I106 -> $0.00 | J107: =tblIncome[[#Totals],[AUG]]-J106 -> $0.00 | K107: =tblIncome[[#Totals],[SEP]]-K106 -> $0.00 | L107: =tblIncome[[#Totals],[OCT]]-L106 -> $0.00 | M107: =tblIncome[[#Totals],[NOV]]-M106 -> $0.00 | N107: =tblIncome[[#Totals],[DEC]]-N106 -> $0.00 | O107: =tblIncome[[#Totals],[YEAR]]-O106 -> $2,089.00
